fUST/lending_fUST_20250217
["ID","MTS","AMOUNT","RATE_DAILY","PERIOD"]
[353362140,1739796646144,-501.0114083,0.00012896,2]
[353362142,1739796646153,-501.95508958,0.00012896,2]
[353362144,1739796646165,-500.0,0.00012896,2]
[353362146,1739796646174,-500.0,0.00012896,2]
[353362148,1739796646184,-500.0,0.00012896,2]
[353362149,1739796646194,-500.0,0.00012896,2]
[353362150,1739796646203,-500.0,0.00012896,2]
[353362152,1739796646213,-2574.72,0.00012931,2]
[353362153,1739796646223,-500.0,0.00012932,2]
[353362154,1739796646232,-500.0,0.00012978,2]
[353362155,1739796646242,-500.0,0.00012978,2]
[353362156,1739796646251,-502.38982311,0.00012978,2]
[353362157,1739796646260,-500.0,0.00012978,2]
[353362158,1739796646270,-502.51983982,0.00012978,2]
[353362159,1739796646279,-500.0,0.00012978,2]
[353362160,1739796646288,-500.0,0.00012978,2]
[353362161,1739796646298,-500.0,0.00012978,2]
[353362162,1739796646312,-501.37028032,0.00012978,2]
[353362163,1739796646321,-500.0,0.00012978,2]
[353362164,1739796646331,-500.0,0.00012978,2]
[353362165,1739796646340,-500.0,0.00012978,2]
[353362166,1739796646351,-501.57901468,0.00012978,2]
[353362167,1739796646360,-500.0,0.00012978,2]
[353362168,1739796646370,-500.0,0.00012978,2]
[353362169,1739796646380,-151.0,0.00013,2]
[353362170,1739796646390,-151.0,0.00013,2]
[353362171,1739796646400,-500.0,0.00013008,2]
[353362172,1739796646410,-3000.0,0.00013043,2]
[353362173,1739796646419,-274.36528477,0.0001306,2]
[353362174,1739796646429,-502.21081919,0.00013061,2]
[353362175,1739796646438,-502.28397649,0.00013061,2]
[353362176,1739796646448,-495.0,0.00013061,2]
[353362177,1739796646457,-503.11243424,0.00013061,2]
[353362178,1739796646467,-502.43131329,0.00013061,2]
[353362179,1739796646478,-500.98362518,0.00013061,2]
[353362180,1739796646489,-503.25407185,0.00013061,2]
[353362181,1739796646498,-497.16113053,0.0001309,2]
[353362182,1739796646508,-151.0,0.000133,2]
[353362183,1739796646518,-151.0,0.000134,2]
[353362184,1739796646528,-153.0000001,0.00013425,2]
[353362185,1739796646539,-431.720618,0.00013425,2]
[353362186,1739796646548,-153.5365275,0.00013425,2]
[353362187,1739796646559,-1000.0,0.0001348,2]
[353362188,1739796646569,-437.554,0.00013506,2]
[353362189,1739796646579,-151.0,0.00013554,2]
[353362190,1739796646588,-151.0,0.00013554,2]
[353362191,1739796646598,-151.0,0.00013554,2]
[353362192,1739796646608,-500.0,0.00013698,2]
[353362193,1739796646618,-768.444745,0.00013699,2]
[353362194,1739796646627,-524.038527,0.00013699,2]
[353362195,1739796646637,-500.0,0.00013699,2]
[353362196,1739796646647,-202.61513239,0.00013699,2]
[353362197,1739796646656,-151.0,0.00013699,2]
[353362198,1739796646666,-151.0,0.00013699,2]
[353362199,1739796646676,-151.0,0.00013699,2]
[353362200,1739796646685,-1118.264727,0.00013699,2]
[353362202,1739796646695,-1118.264727,0.00013699,2]
[353362204,1739796646707,-151.0,0.00013699,2]
[353362206,1739796646717,-151.0,0.00013699,2]
[353362208,1739796646732,-151.0,0.00013699,2]
[353362210,1739796646742,-277.000644,0.00013699,2]
[353362212,1739796646751,-151.0,0.00013699,2]
[353362214,1739796646761,-351.044296,0.00013699,2]
[353362216,1739796646770,-351.044296,0.00013699,2]
[353362218,1739796646780,-351.044296,0.00013699,2]
[353362221,1739796646790,-351.044296,0.00013699,2]
[353362223,1739796646799,-1515.81418586,0.00013699,2]
[353362225,1739796646809,-500.0,0.00013699,2]
[353362227,1739796646819,-1515.81418586,0.00013699,2]
[353362229,1739796646828,-500.0,0.00013699,2]
[353362231,1739796646837,-1515.81418586,0.00013699,2]
[353362233,1739796646850,-1515.81418586,0.00013699,2]
[353362235,1739796646859,-500.0,0.00013699,2]
[353362237,1739796646869,-1515.81418586,0.00013699,2]
[353362239,1739796646879,-1515.81418586,0.00013699,2]
[353362241,1739796646888,-1515.81418586,0.00013699,2]
[353362243,1739796646898,-1515.81418586,0.00013699,2]
[353362245,1739796646908,-1515.81418586,0.00013699,2]
[353362247,1739796646918,-500.0,0.00013699,2]
[353362249,1739796646927,-1515.81418586,0.00013699,2]
[353362253,1739796646947,-500.0,0.00013699,2]
[353362255,1739796646957,-1515.81418586,0.00013699,2]
[353362257,1739796646967,-1515.81418586,0.00013699,2]
[353362259,1739796646976,-500.0,0.00013699,2]
[353362261,1739796646986,-1515.81418586,0.00013699,2]
[353362263,1739796646995,-1515.81418586,0.00013699,2]
[353362265,1739796647004,-1515.81418586,0.00013699,2]
[353362267,1739796647014,-202.83,0.00013699,2]
[353362269,1739796647023,-1515.81418586,0.00013699,2]
[353362271,1739796647033,-1515.81418586,0.00013699,2]
[353362273,1739796647042,-1515.81418586,0.00013699,2]
[353362275,1739796647052,-1515.81418586,0.00013699,2]
[353362277,1739796647063,-1515.81418586,0.00013699,2]
[353362279,1739796647072,-1515.81418586,0.00013699,2]
[353362281,1739796647082,-1515.81418586,0.00013699,2]
[353362283,1739796647092,-1515.81418586,0.00013699,2]
[353362285,1739796647101,-1515.81418586,0.00013699,2]
[353362287,1739796647110,-1515.81418586,0.00013699,2]
[353362289,1739796647119,-1515.81418586,0.00013699,2]
[353362291,1739796647128,-1515.81418586,0.00013699,2]
[353362293,1739796647138,-1515.81418586,0.00013699,2]
[353362295,1739796647146,-1515.81418586,0.00013699,2]
[353362297,1739796647156,-1515.81418586,0.00013699,2]
[353362299,1739796647165,-1515.81418586,0.00013699,2]
[353362301,1739796647175,-1515.81418586,0.00013699,2]
[353362303,1739796647184,-1515.81418586,0.00013699,2]
[353362305,1739796647194,-1515.81418586,0.00013699,2]
[353362307,1739796647204,-1515.81418586,0.00013699,2]
[353362309,1739796647213,-1515.81418586,0.00013699,2]
[353362311,1739796647223,-1515.81418586,0.00013699,2]
[353362313,1739796647233,-1515.81418586,0.00013699,2]
[353362315,1739796647242,-1515.81418586,0.00013699,2]
[353362317,1739796647251,-1515.81418586,0.00013699,2]
[353362319,1739796647261,-1515.81418586,0.00013699,2]
[353362321,1739796647270,-1515.81418586,0.00013699,2]
[353362323,1739796647280,-1515.81418586,0.00013699,2]
[353362325,1739796647289,-1515.81418586,0.00013699,2]
[353362327,1739796647299,-1515.81418586,0.00013699,2]
[353362329,1739796647312,-1515.81418586,0.00013699,2]
[353362331,1739796647322,-1515.81418586,0.00013699,2]
[353362333,1739796647331,-1515.81418586,0.00013699,2]
[353362335,1739796647342,-1515.81418586,0.00013699,2]
[353362337,1739796647351,-1515.81418586,0.00013699,2]
[353362339,1739796647362,-1515.81418586,0.00013699,2]
[353362341,1739796647372,-1515.81418586,0.00013699,2]
[353362343,1739796647383,-1515.81418586,0.00013699,2]
[353362346,1739796647393,-1515.81418586,0.00013699,2]
[353362348,1739796647404,-1515.81418586,0.00013699,2]
[353362350,1739796647413,-1515.81418586,0.00013699,2]
[353362352,1739796647423,-1515.81418586,0.00013699,2]
[353362354,1739796647433,-1515.81418586,0.00013699,2]
[353362356,1739796647443,-1515.81418586,0.00013699,2]
[353362358,1739796647454,-1515.81418586,0.00013699,2]
[353362360,1739796647465,-1515.81418586,0.00013699,2]
[353362361,1739796647474,-1515.81418586,0.00013699,2]
[353362363,1739796647483,-151.0,0.000137,2]
[353362365,1739796647493,-151.0,0.000138,2]
[353362367,1739796647502,-500.0,0.00013835,2]
[353362369,1739796647512,-151.0,0.00013965,2]
[353362371,1739796647522,-151.0,0.00014,2]
[353362373,1739796647531,-151.0,0.000141,2]
[353362375,1739796647542,-151.0,0.000141,2]
[353362377,1739796647551,-151.0,0.00014129,2]
[353362379,1739796647562,-151.0,0.00014129,2]
[353362393,1739796647572,-1118.264727,0.00014129,2]
[353362396,1739796647701,-1118.264727,0.00014129,2]
[353362398,1739796647711,-500.0,0.00014163,2]
[353362400,1739796647720,-500.0,0.00014163,2]
[353362402,1739796647733,-500.0,0.0001421,2]
[353362404,1739796647742,-1000.0,0.00014247,2]
[353362406,1739796647752,-151.0,0.000143,2]
[353362408,1739796647761,-151.0,0.00014376,2]
[353362410,1739796647771,-151.0,0.000145,2]
[353362412,1739796647781,-151.0,0.000145,2]
[353362414,1739796647790,-151.0,0.000146,2]
[353362416,1739796647799,-150.0,0.00014617,4]
[353362418,1739796647809,-171.77593022,0.00014617,4]
[353362420,1739796647818,-1669.5065719,0.00014699,2]
[353362422,1739796647827,-151.0,0.000147,2]
[353362424,1739796647837,-1151.985546,0.000147,2]
[353362426,1739796647846,-1151.985546,0.000147,2]
[353362428,1739796647856,-1000.0,0.0001471,2]
[353362430,1739796647865,-485.53027397,0.0001471,2]
[353362432,1739796647876,-153.0,0.00014712,2]
[353362434,1739796647886,-153.0,0.00014712,2]
[353362436,1739796647896,-153.0,0.00014712,2]
[353362438,1739796647906,-310.2280238,0.00014712,2]
[353362440,1739796647915,-151.2,0.0001474,2]
[353362442,1739796647925,-541.038,0.0001474,2]
[353362444,1739796647934,-1971.0,0.0001474,2]
[353362446,1739796647944,-2292.0,0.0001474,2]
[353362448,1739796647954,-396.0,0.0001474,2]
[353362450,1739796647963,-150.0,0.0001474,2]
[353362453,1739796647975,-183.684,0.0001474,2]
[353362454,1739796647985,-1000.0,0.00014758,2]
[353362457,1739796647994,-500.0,0.00014773,2]
[353362458,1739796648004,-500.0,0.00014773,2]
[353362460,1739796648013,-151.0,0.000148,2]
[353362462,1739796648023,-2933.72768187,0.000148,2]
[353362464,1739796648032,-209488.565546,0.000148,2]
[353362467,1739796648042,-1508.36448916,0.000148,2]
[353362469,1739796648052,-1508.36448916,0.000148,2]
[353362471,1739796648061,-1508.36448916,0.000148,2]
[353362473,1739796648070,-1508.36448916,0.000148,2]
[353362474,1739796648079,-1508.36448916,0.000148,2]
[353362477,1739796648088,-1508.36448916,0.000148,2]
[353362479,1739796648098,-1508.36448916,0.000148,2]
[353362480,1739796648107,-1508.36448916,0.000148,2]
[353362482,1739796648116,-1508.36448916,0.000148,2]
[353362485,1739796648126,-1508.36448916,0.000148,2]
[353362486,1739796648135,-1508.36448916,0.000148,2]
[353362488,1739796648144,-1508.36448916,0.000148,2]
[353362491,1739796648154,-1508.36448916,0.000148,2]
[353362492,1739796648163,-1508.36448916,0.000148,2]
[353362495,1739796648173,-1508.36448916,0.000148,2]
[353362497,1739796648183,-1508.36448916,0.000148,2]
[353362499,1739796648192,-1508.36448916,0.000148,2]
[353362500,1739796648201,-1508.36448916,0.000148,2]
[353362502,1739796648211,-1508.36448916,0.000148,2]
[353362504,1739796648221,-1508.36,0.000148,2]
[353362507,1739796648232,-3519.51714136,0.000148,2]
[353362509,1739796648241,-3519.51714136,0.000148,2]
[353362510,1739796648251,-3519.51714136,0.000148,2]
[353362513,1739796648261,-3519.51714136,0.000148,2]
[353362514,1739796648270,-3519.51714136,0.000148,2]
[353362517,1739796648280,-3519.51714136,0.000148,2]
[353362518,1739796648290,-3519.51714136,0.000148,2]
[353362520,1739796648300,-3519.51714136,0.000148,2]
[353362522,1739796648313,-3519.51714136,0.000148,2]
[353362524,1739796648323,-3519.51714136,0.000148,2]
[353362527,1739796648333,-3519.51714136,0.000148,2]
[353362529,1739796648343,-3519.51714136,0.000148,2]
[353362531,1739796648353,-3519.51714136,0.000148,2]
[353362532,1739796648363,-3519.51714136,0.000148,2]
[353362534,1739796648373,-3519.51714136,0.000148,2]
[353362536,1739796648383,-3519.51714136,0.000148,2]
[353362538,1739796648393,-3519.51714136,0.000148,2]
[353362540,1739796648403,-3519.51714136,0.000148,2]
[353362542,1739796648412,-3519.51714136,0.000148,2]
[353362544,1739796648421,-3519.51,0.000148,2]
[353362546,1739796648431,-415.87866598,0.000148,2]
[353362547,1739796648440,-415.87866598,0.000148,2]
[353362548,1739796648450,-415.87866598,0.000148,2]
[353362549,1739796648464,-415.87866598,0.000148,2]
[353362550,1739796648483,-415.87866598,0.000148,2]
[353362551,1739796648493,-415.87866598,0.000148,2]
[353362552,1739796648503,-415.87866598,0.000148,2]
[353362553,1739796648513,-415.87866598,0.000148,2]
[353362554,1739796648523,-415.87866598,0.000148,2]
[353362555,1739796648534,-415.87866598,0.000148,2]
[353362556,1739796648543,-415.87866598,0.000148,2]
[353362557,1739796648553,-415.87866598,0.000148,2]
[353362558,1739796648563,-415.87866598,0.000148,2]
[353362559,1739796648574,-415.87866598,0.000148,2]
[353362560,1739796648585,-415.87866598,0.000148,2]
[353362561,1739796648595,-415.87866598,0.000148,2]
[353362562,1739796648605,-415.87866598,0.000148,2]
[353362563,1739796648615,-415.87866598,0.000148,2]
[353362564,1739796648624,-415.87866598,0.000148,2]
[353362565,1739796648635,-415.87,0.000148,2]
[353362566,1739796648644,-970.38355395,0.000148,2]
[353362567,1739796648656,-970.38355395,0.000148,2]
[353362568,1739796648667,-970.38355395,0.000148,2]
[353362569,1739796648677,-970.38355395,0.000148,2]
[353362572,1739796648688,-970.38355395,0.000148,2]
[353362573,1739796648698,-970.38355395,0.000148,2]
[353362575,1739796648709,-970.38355395,0.000148,2]
[353362578,1739796648719,-970.38355395,0.000148,2]
[353362580,1739796648730,-970.38355395,0.000148,2]
[353362581,1739796648741,-970.38355395,0.000148,2]
[353362583,1739796648751,-970.38355395,0.000148,2]
[353362585,1739796648761,-970.38355395,0.000148,2]
[353362588,1739796648772,-970.38355395,0.000148,2]
[353362589,1739796648782,-970.38355395,0.000148,2]
[353362591,1739796648792,-970.38355395,0.000148,2]
[353362593,1739796648801,-970.38355395,0.000148,2]
[353362596,1739796648811,-970.38355395,0.000148,2]
[353362598,1739796648821,-970.38355395,0.000148,2]
[353362600,1739796648831,-970.38355395,0.000148,2]
[353362602,1739796648840,-970.38,0.000148,2]
[353362603,1739796648850,-1311.44150986,0.000148,2]
[353362605,1739796648859,-344.0,0.0001484,2]
[353362607,1739796648869,-151.0,0.0001489,2]
[353362609,1739796648879,-150.0,0.000149,2]
[353362611,1739796648889,-151.0,0.000149,2]
[353362614,1739796648899,-1151.985546,0.000149,2]
[353362616,1739796648909,-1151.985546,0.000149,2]
[353362618,1739796648919,-151.0,0.000149,2]
[353362620,1739796648930,-151.0,0.000149,2]
[353362622,1739796648941,-151.0,0.000149,2]
[353362624,1739796648952,-151.0,0.000149,2]
[353362626,1739796648962,-258.668222,0.000149,2]
[353362628,1739796648972,-1118.264727,0.000149,2]
[353362630,1739796648984,-1118.264727,0.000149,2]
[353362632,1739796648996,-1118.264727,0.000149,2]
[353362634,1739796649006,-1118.264727,0.000149,2]
[353362636,1739796649018,-151.0,0.000149,2]
[353362638,1739796649028,-151.0,0.000149,2]
[353362640,1739796649039,-634657.449806,0.000149,2]
[353362642,1739796649049,-151.0,0.000149,2]
[353362644,1739796649060,-351.044296,0.000149,2]
[353362646,1739796649070,-351.044296,0.000149,2]
[353362648,1739796649079,-151.0,0.0001499,2]
[353362650,1739796649089,-1151.985546,0.0001499,2]
[353362652,1739796649099,-1151.985546,0.0001499,2]
[353362654,1739796649109,-73365.58149791,0.0001499,2]
[353362657,1739796649126,-611.556,0.0001499,2]
[353362664,1739796649188,-478.11,0.0001499,2]
[353362666,1739796649201,-842.549466,0.0001499,2]
[353362670,1739796649236,-500.0,0.00010958,2]
[353362672,1739796649246,-553.43,0.00011041,2]
[353362674,1739796649257,-234.21815953,0.0001499,2]
[353362677,1739796649270,-14248.79868206,0.0001499,2]
[353362679,1739796649281,-202.33373883,0.00014999,2]
[353362681,1739796649291,-371.86033611,0.00014999,2]
[353362683,1739796649303,-81091.007243,0.00015,5]
[353362685,1739796649317,-4786.22971069,0.00015,5]
[353362971,1739797547130,-1092.16583208,9.509e-05,2]
[353362972,1739797631226,-292.7122065,9.411e-05,2]
[353362973,1739797631249,-498.13575702,9.509e-05,2]
[353362974,1739797631270,-221.05926529,9.605e-05,2]
[353362975,1739797649092,-240.6593709,9.509e-05,2]
[353362976,1739797649114,-118.98204455,9.605e-05,2]
[353362977,1739797650098,-253.59617717,9.605e-05,2]
[353362978,1739797653146,-996.66410209,9.605e-05,2]
[353362979,1739797653168,-250.0,9.839e-05,2]
[353362980,1739797653189,-75.46989774,0.00010019,2]
[353362981,1739797749251,-224.53010226,9.919e-05,2]
[353362982,1739797749274,-300.0,0.00010019,2]
[353362983,1739797749295,-1414.43298542,0.0001002,2]
[353362984,1739797753111,-23485.56701458,0.0001002,2]
[353362985,1739797753132,-1590.3015891,0.000101,2]
[353362986,1739797753155,-1466.9273971,0.000101,2]
[353362987,1739797753181,-400.0,0.00010685,2]
[353362988,1739797753203,-638.99617756,0.00010857,2]
[353362989,1739797753225,-965.52664738,0.00010857,2]
[353362990,1739797753248,-347.31657146,0.00010958,2]
[353362991,1739797753269,-216.04343766,0.00010958,2]
[353362992,1739797753291,-500.0,0.00010958,2]
[353362993,1739797753313,-500.0,0.00010958,2]
[353362994,1739797753337,-500.0,0.00010958,2]
[353362995,1739797753373,-501.98321744,0.00010958,2]
[353362996,1739797753396,-500.0,0.00010958,2]
[353362997,1739797753419,-500.0,0.00010958,2]
[353362998,1739797753441,-500.0,0.00010958,2]
[353362999,1739797753465,-500.0,0.00010958,2]
[353363000,1739797753487,-500.0,0.00010958,2]
[353363001,1739797753509,-500.0,0.00010958,2]
[353363002,1739797753532,-500.0,0.00010958,2]
[353363003,1739797753555,-500.0,0.00010958,2]
[353363004,1739797753577,-501.62921561,0.00010958,2]
[353363005,1739797753598,-500.0,0.00010958,2]
[353363006,1739797753620,-500.0,0.00010958,2]
[353363007,1739797753645,-500.0,0.00010958,2]
[353363008,1739797753672,-500.0,0.00010958,2]
[353363009,1739797753693,-500.0,0.00010958,2]
[353363010,1739797753718,-500.0,0.00010958,2]
[353363011,1739797753741,-639.96,0.00010958,2]
[353363012,1739797753763,-500.0,0.00010958,2]
[353363013,1739797753784,-500.0,0.00010958,2]
[353363014,1739797753805,-500.0,0.00010958,2]
[353363015,1739797753827,-500.0,0.00010958,2]
[353363016,1739797753849,-1371.22,0.00010958,2]
[353363017,1739797753871,-500.0,0.00010958,2]
[353363018,1739797753893,-500.0,0.00010958,2]
[353363019,1739797753914,-500.0,0.00010958,2]
[353363020,1739797753937,-500.0,0.00010958,2]
[353363021,1739797753962,-500.0,0.00010958,2]
[353363022,1739797753982,-500.0,0.00010958,2]
[353363023,1739797754003,-500.0,0.00010958,2]
[353363024,1739797754025,-500.0,0.00010958,2]
[353363025,1739797754046,-500.0,0.00010958,2]
[353363026,1739797754067,-500.0,0.00010958,2]
[353363027,1739797754088,-500.0,0.00010958,2]
[353363028,1739797754110,-500.0,0.00010958,2]
[353363029,1739797754132,-500.0,0.00010958,2]
[353363030,1739797754153,-767.4,0.00010958,2]
[353363031,1739797754176,-359.90957687,0.00010958,2]
[353363032,1739797756114,-1005.83592895,9.92e-05,2]
[353363033,1739797756138,-34.84480115,0.00010958,2]
[353363034,1739797774342,-105.24562198,0.00010958,2]
[353363035,1739797774367,-253.19610341,0.00010958,2]
[353363036,1739797774393,-500.0,0.00010958,2]
[353363037,1739797774417,-500.0,0.00010958,2]
[353363038,1739797774440,-500.0,0.00010958,2]
[353363039,1739797774464,-500.0,0.00010958,2]
[353363040,1739797774488,-500.0,0.00010958,2]
[353363041,1739797774510,-500.0,0.00010958,2]
[353363042,1739797774534,-500.0,0.00010958,2]
[353363043,1739797774557,-500.0,0.00010958,2]
[353363044,1739797774579,-500.0,0.00010958,2]
[353363045,1739797774603,-500.0,0.00010958,2]
[353363046,1739797774625,-500.0,0.00010958,2]
[353363047,1739797774650,-514.06,0.00010958,2]
[353363048,1739797774677,-500.0,0.00010958,2]
[353363049,1739797774700,-500.0,0.00010958,2]
[353363050,1739797774725,-500.0,0.00010958,2]
[353363051,1739797774752,-500.0,0.00010958,2]
[353363052,1739797774775,-500.0,0.00010958,2]
[353363053,1739797774800,-572.87,0.00010958,2]
[353363054,1739797774824,-500.0,0.00010958,2]
[353363055,1739797774847,-500.0,0.00010958,2]
[353363056,1739797774870,-500.0,0.00010958,2]
[353363057,1739797774898,-395.99268859,0.00010958,2]
[353363058,1739797774919,-491.03389373,0.00010958,2]
[353363059,1739797774943,-487.65093404,0.00010958,2]
[353363060,1739797774966,-500.0,0.00010958,2]
[353363061,1739797774992,-501.55,0.00010958,2]
[353363062,1739797775016,-501.84234987,0.00010958,2]
[353363063,1739797775039,-503.02071668,0.00010958,2]
[353363064,1739797775061,-500.0,0.00010958,2]
[353363065,1739797775084,-238.90381035,0.00010958,2]
[353363066,1739797775107,-500.0,0.00010958,2]
[353363067,1739797775130,-500.0,0.00010958,2]
[353363068,1739797775153,-277.8004232,0.00010958,2]
[353363069,1739797775176,-500.0,0.00010958,2]
[353363070,1739797775204,-500.0,0.00010958,2]
[353363071,1739797775229,-500.0,0.00010958,2]
[353363072,1739797775252,-500.86636206,0.00010958,2]
[353363073,1739797775275,-500.0,0.00010958,2]
[353363074,1739797775298,-500.0,0.00010958,2]
[353363075,1739797775320,-500.0,0.00010958,2]
[353363076,1739797775342,-500.0,0.00010958,2]
[353363077,1739797775366,-500.0,0.00010958,2]
[353363078,1739797775389,-544.44013558,0.00010958,2]
[353363079,1739797775413,-500.0,0.00010958,2]
[353363080,1739797775436,-506.79070446,0.00010958,2]
[353363081,1739797775459,-500.0,0.00010958,2]
[353363082,1739797775482,-500.0,0.00010958,2]
[353363083,1739797775504,-204.82196981,0.00010958,2]
[353363084,1739797775529,-500.0,0.00010958,2]
[353363085,1739797775553,-500.0,0.00010958,2]
[353363086,1739797775582,-500.0,0.00010958,2]
[353363087,1739797775605,-500.0,0.00010958,2]
[353363088,1739797775628,-500.0,0.00010958,2]
[353363089,1739797775654,-500.0,0.00010958,2]
[353363090,1739797775681,-500.0,0.00010958,2]
[353363091,1739797775709,-500.0,0.00010958,2]
[353363092,1739797775733,-500.0,0.00010958,2]
[353363093,1739797775759,-502.73834308,0.00010958,2]
[353363094,1739797775783,-500.0,0.00010958,2]
[353363095,1739797775806,-639.75,0.00010958,2]
[353363096,1739797775831,-500.0,0.00010958,2]
[353363097,1739797775855,-503.82418165,0.00010958,2]
[353363098,1739797775878,-500.0,0.00010958,2]
[353363099,1739797775903,-420.0,0.0001102,2]
[353363100,1739797775925,-500.0,0.0001104,2]
[353363101,1739797775949,-193.1674669,0.0001104,2]
[353363102,1739797775972,-388.26871952,0.0001104,2]
[353363103,1739797775996,-500.0,0.0001104,2]
[353363104,1739797776023,-500.0,0.0001104,2]
[353363105,1739797776050,-500.0,0.0001104,2]
[353363106,1739797776077,-500.0,0.0001104,2]
[353363107,1739797776103,-333.5277449,0.0001104,2]
[353363108,1739797776245,-500.0,0.0001104,2]
[353363109,1739797776271,-500.0,0.0001104,2]
[353363110,1739797776296,-500.0,0.0001104,2]
[353363111,1739797776322,-500.0,0.0001104,2]
[353363112,1739797776346,-500.0,0.0001104,2]
[353363113,1739797776372,-500.0,0.0001104,2]
[353363114,1739797776397,-500.0,0.0001104,2]
[353363115,1739797776423,-500.0,0.0001104,2]
[353363116,1739797776450,-500.0,0.0001104,2]
[353363117,1739797776475,-167.04187516,0.0001104,2]
[353363118,1739797776500,-500.0,0.0001104,2]
[353363119,1739797776524,-500.0,0.0001104,2]
[353363120,1739797776549,-500.0,0.0001104,2]
[353363121,1739797776575,-500.0,0.0001104,2]
[353363122,1739797776599,-610.22308145,0.0001104,2]
[353363123,1739797776623,-500.0,0.0001104,2]
[353363124,1739797776648,-446.66227513,0.0001104,2]
[353363143,1739797831815,-502.81816364,0.00010958,2]
[353363145,1739797831826,-500.0,0.00010958,2]
[353363147,1739797831835,-500.0,0.00010958,2]
[353363149,1739797831845,-500.0,0.00010958,2]
[353363151,1739797831855,-657.28183636,0.00010958,2]
[353363153,1739797831890,-656.80816364,0.00010958,2]
[353363155,1739797831901,-500.0,0.00010958,2]
[353363157,1739797831910,-839.59,0.00010958,2]
[353363159,1739797831920,-500.0,0.00010958,2]
[353363161,1739797831931,-500.0,0.00010958,2]
[353363163,1739797831941,-500.0,0.00010958,2]
[353363165,1739797831952,-500.0,0.00010958,2]
[353363167,1739797831961,-500.0,0.00010958,2]
[353363169,1739797831971,-500.0,0.00010958,2]
[353363171,1739797831981,-500.0,0.00010958,2]
[353363175,1739797831991,-300.0,0.00011039,2]
[353363176,1739797832001,-53.33772487,0.0001104,2]
[353363177,1739797832011,-500.0,0.0001104,2]
[353363178,1739797832022,-500.0,0.0001104,2]
[353363179,1739797832032,-500.0,0.0001104,2]
[353363180,1739797832041,-500.0,0.0001104,2]
[353363181,1739797832050,-500.0,0.0001104,2]
[353363182,1739797832060,-500.0,0.0001104,2]
[353363183,1739797832070,-500.0,0.0001104,2]
[353363184,1739797832079,-500.0,0.0001104,2]
[353363185,1739797832089,-500.0,0.0001104,2]
[353363186,1739797832099,-500.0,0.00011041,2]
[353363187,1739797832108,-500.0,0.00011041,2]
[353363188,1739797832117,-500.0,0.00011041,2]
[353363189,1739797832128,-500.0,0.00011041,2]
[353363190,1739797832138,-500.0,0.00011041,2]
[353363191,1739797832147,-500.0,0.00011041,2]
[353363192,1739797832157,-195.09,0.00011041,2]
[353363193,1739797832166,-229.14,0.00011041,2]
[353363194,1739797832176,-315.8845144,0.00011041,2]
[353363195,1739797832186,-500.0,0.00011041,2]
[353363196,1739797832195,-500.0,0.00011041,2]
[353363197,1739797832205,-331.71,0.00011041,2]
[353363198,1739797832214,-500.0,0.00011041,2]
[353363199,1739797832223,-500.0,0.00011041,2]
[353363200,1739797832232,-500.0,0.00011041,2]
[353363201,1739797832242,-500.0,0.00011041,2]
[353363202,1739797832251,-572.87,0.00011041,2]
[353363203,1739797832259,-501.55,0.00011041,2]
[353363204,1739797832269,-561.65,0.00011041,2]
[353363205,1739797832280,-514.56,0.00011041,2]
[353363206,1739797832289,-500.0,0.00011041,2]
[353363207,1739797832298,-392.59623735,0.00011041,2]
[353363208,1739797832310,-107.40376265,0.00011041,2]